bitfinex-derivatives/quotes_ETHF0:USTF0_20250726
["timestamp","ask_amount","ask_price","bid_price","bid_amount"]
[1753492260047,0.63888838,3724.6,3724.5,3.40789427]
[1753492260245,1.39008838,3724.6,3724.5,3.40789427]
[1753492260847,0.63888838,3724.6,3724.5,3.40789427]
[1753492261242,0.63888838,3724.6,3724.5,3.40814844]
[1753492261948,1.4557,3724.8,3724.7,2.27703]
[1753492262147,2.09466325,3724.8,3724.7,2.66886973]
[1753492262348,2.39346325,3724.8,3724.7,2.66886973]
[1753492263552,2.39346325,3724.8,3724.7,0.92866973]
[1753492263850,1.24137,3724.5,3724.4,0.53687]
[1753492264053,2.2914,3724.3,3724.2,0.5369]
[1753492264545,1.24141,3724.2,3724.1,0.53691]
[1753492264748,2.29141,3724.1,3724.0,0.53692]
[1753492265752,1.7545,3724.1,3724.0,0.53692]
[1753492266250,1.7545,3724.1,3724.0,0.83782]
[1753492266756,1.7545,3724.1,3724.0,2.08136871]
[1753492266952,1.7545,3724.1,3724.0,2.84646871]
[1753492267252,1.7545,3724.1,3724.0,3.05336871]
[1753492268258,0.2063,3724.1,3724.0,3.05336871]
[1753492268460,1.7432,3724.4,3724.3,2.31409]
[1753492268756,2.38175843,3724.4,3724.3,3.05333871]
[1753492269361,1.453,3724.9,3724.8,2.31401]
[1753492269557,1.453,3724.9,3724.8,3.05325871]
[1753492270659,1.7432,3724.9,3724.8,3.05325871]
[1753492271056,1.7432,3724.9,3724.8,2.74405871]
[1753492271255,1.7432,3724.9,3724.8,1.57695871]
[1753492272763,1.7432,3724.9,3724.8,1.78255871]
[1753492272964,1.7432,3724.9,3724.8,3.05325871]
[1753492273457,1.7432,3724.9,3724.8,2.74405871]
[1753492275761,6.7432,3724.9,3724.8,0.38636324]
[1753492275961,1.5178,3724.1,3724.0,1.2611]
[1753492276264,1.5178,3724.1,3724.0,1.34213]
[1753492276954,2.05471,3724.1,3724.0,0.83783]
[1753492277459,2.05474,3723.9,3723.8,0.53695]
[1753492277961,2.05479,3723.6,3723.5,0.3009]
[1753492278162,2.0548,3723.5,3723.4,0.83791]
[1753492278665,2.05544,3723.2,3723.1,0.3009]
[1753492278963,1.5184,3722.9,3722.8,0.83799]
[1753492279259,1.5184,3722.9,3722.8,1.04359]
[1753492279466,2.05549,3722.9,3722.8,0.5065]
[1753492279765,2.05549,3722.9,3722.8,1.0436]
[1753492279965,1.5184,3722.9,3722.8,1.0436]
[1753492280258,1.5184,3722.9,3722.8,2.3143]
[1753492280465,1.2282,3722.9,3722.8,2.3143]
[1753492281357,0.4831,3722.9,3722.8,2.3143]
[1753492281659,0.4831,3722.9,3722.7,0.73924871]
[1753492281660,0.6344,3723.2,3723.1,0.7112]
[1753492281860,0.9418,3723.2,3723.1,1.24825]
[1753492282166,1.5184,3723.2,3723.1,2.31425]
[1753492282866,2.05544,3723.2,3723.1,1.7772]
[1753492283865,2.05544,3723.2,3723.1,0.8052]
[1753492284058,0.74166,3723.1,3723.0,0.73924871]
[1753492284365,2.05546,3723.1,3723.0,1.04014871]
[1753492285068,2.05546,3723.1,3723.0,1.57721871]
[1753492285365,1.5184,3723.1,3723.0,2.23871871]
[1753492285566,1.5184,3723.1,3723.0,2.84661871]
[1753492285767,1.5184,3723.1,3723.0,3.05351871]
[1753492287257,1.2282,3723.1,3723.0,3.05351871]
[1753492287765,1.76526,3723.1,3723.0,2.51644871]
[1753492287962,1.76526,3723.1,3723.0,2.88805343]
[1753492288168,2.05546,3723.1,3723.0,1.91605343]
[1753492288471,2.05546,3723.1,3723.0,0.37160472]
[1753492293373,2.05459,3722.9,3722.8,1.7772]
[1753492293565,2.05459,3722.9,3722.8,2.14833374]
[1753492296172,2.05459,3722.9,3722.8,0.3710098]
[1753492296769,2.05459,3722.9,3722.8,1.8127098]
[1753492297070,1.76439,3722.9,3722.8,2.84495851]
[1753492297373,0.53709,3722.9,3722.8,3.38205851]
[1753492298068,0.53708,3723.0,3722.9,1.23448]
[1753492298262,0.53708,3723.0,3722.9,2.6427898]
[1753492298469,0.3056,3723.3,3722.9,2.6427898]
[1753492298470,1.04233,3723.3,3723.2,1.7347]
[1753492298671,1.04233,3723.3,3723.2,2.84495851]
[1753492299470,1.23673,3723.3,3723.2,2.84495851]
[1753492299667,1.75653,3723.3,3723.2,2.84495851]
[1753492300067,2.06463,3723.3,3723.2,2.84495851]
[1753492300969,2.06463,3723.3,3723.2,0.3710098]
[1753492303368,2.69874914,3723.3,3723.2,0.3710098]
[1753492304267,2.69874914,3723.3,3723.2,0.6730098]
[1753492304469,2.69874914,3723.3,3723.2,0.3710098]
[1753492306280,2.10374914,3723.3,3723.2,2.1057098]
[1753492306976,1.87084914,3723.3,3723.2,2.84495851]
[1753492307172,1.17114914,3723.3,3723.2,2.84495851]
[1753492308973,1.87084914,3723.3,3723.2,2.84495851]
[1753492309172,2.39064914,3723.3,3723.2,2.84495851]
[1753492309773,2.69874914,3723.3,3723.2,2.84495851]
[1753492310879,2.69874914,3723.3,3723.2,2.1057098]
[1753492312370,4.14446254,3723.3,3723.2,2.1057098]
[1753492313784,2.69874914,3723.3,3723.2,2.1057098]
[1753492321183,2.39064914,3723.3,3723.2,2.1057098]
[1753492321483,0.63411914,3723.3,3723.2,3.38199851]
[1753492323790,0.63411914,3723.3,3723.2,4.12124722]
[1753492324086,0.53695,3723.9,3723.7,2.27167]
[1753492324282,0.53695,3723.9,3723.8,2.84495851]
[1753492325186,1.79105,3723.9,3723.8,2.84495851]
[1753492325782,1.98545,3723.9,3723.8,2.84495851]
[1753492326785,2.28305,3723.9,3723.8,2.1057098]
[1753492331784,2.28305,3723.9,3723.8,2.10575826]
[1753492332785,2.28305,3723.9,3723.8,0.67305826]
[1753492333186,2.28305,3723.9,3723.8,1.61965826]
[1753492333391,2.28305,3723.9,3723.8,1.92825826]
[1753492333590,2.28305,3723.9,3723.8,2.13605826]
[1753492335495,2.28305,3723.9,3723.8,0.86615826]
[1753492336197,2.91619437,3723.9,3723.8,1.61965826]
[1753492336795,2.91619437,3723.9,3723.8,2.13605826]
[1753492338094,2.91619437,3723.9,3723.8,2.13594878]
[1753492342603,2.61859437,3723.9,3723.8,2.13594878]
[1753492342896,2.61859437,3723.9,3723.8,2.87519749]
[1753492343496,2.10689437,3723.9,3723.8,2.87519749]
[1753492343695,2.10689437,3723.9,3723.8,2.87329854]
[1753492343899,2.41889437,3723.9,3723.8,2.13404983]
[1753492344295,3.86460777,3723.9,3723.8,2.13404983]
[1753492345893,4.07300777,3723.9,3723.8,2.13404983]
[1753492346604,4.37060777,3723.9,3723.8,2.13404983]
[1753492346902,2.92489437,3723.9,3723.8,2.13404983]
[1753492348900,2.92489437,3723.9,3723.8,0.36904983]
[1753492349301,1.99817,3723.0,3722.9,1.1633]
[1753492349498,2.63131437,3723.0,3722.9,1.81696376]
[1753492349894,2.63131437,3723.0,3722.9,2.11666376]
[1753492351806,1.17021437,3723.0,3722.9,2.85591247]
[1753492352209,0.63314437,3723.0,3722.9,3.39300247]
[1753492352405,1.17021437,3723.0,3722.9,2.85591247]
[1753492352802,2.63131437,3723.0,3722.9,2.85591247]
[1753492353203,2.92891437,3723.0,3722.9,2.85591247]
[1753492354408,1.15354437,3723.0,3722.9,2.85591247]
[1753492354907,1.37861437,3723.0,3722.9,2.85591247]
[1753492355110,1.17021437,3723.0,3722.9,3.39300247]
[1753492355411,0.63314437,3723.0,3722.9,3.39300247]
[1753492355610,2.1011,3723.6,3723.0,1.7275]
[1753492355804,2.33590599,3723.5,3723.4,1.7275]
[1753492356003,2.63180599,3723.5,3723.4,1.7275]
[1753492357109,2.94290599,3723.5,3723.4,1.7275]
[1753492358910,2.63180599,3723.5,3723.4,1.7275]
[1753492359206,1.86990599,3723.5,3723.4,1.7275]
[1753492360013,2.33590599,3723.5,3723.4,1.7275]
[1753492361011,1.67320599,3723.5,3723.4,1.7275]
[1753492361309,0.63400599,3723.5,3723.4,1.7275]
[1753492361507,0.63400599,3723.5,3723.4,2.62875912]
[1753492365009,1.44650372,3724.1,3724.0,0.6826]
[1753492365307,1.44650372,3724.2,3724.0,1.78609783]
[1753492365522,1.98340372,3724.3,3724.2,1.7275]
[1753492365714,1.98340372,3724.3,3724.2,2.83099783]
[1753492366011,0.5369,3724.3,3724.2,2.83099783]
[1753492367209,0.53687,3724.4,3724.2,2.83083697]
[1753492367416,1.23907,3724.4,3724.3,2.09158826]
[1753492367716,0.7022,3724.4,3724.3,2.09158826]
[1753492368011,1.4608,3724.4,3724.3,2.09158826]
[1753492368606,1.4608,3724.4,3724.3,1.7275]
[1753492369207,1.2641,3724.4,3724.3,2.26439]
[1753492369407,0.5055,3724.4,3724.3,2.26439]
[1753492369807,0.7619,3724.4,3724.3,2.26439]
[1753492370212,0.2926,3724.7,3724.6,1.2395]
[1753492370412,0.2926,3724.7,3724.6,3.00357871]
[1753492370610,1.4608,3724.9,3724.8,0.6826]
[1753492370806,1.4608,3724.9,3724.8,1.7275]
[1753492371012,1.4608,3724.9,3724.8,2.26431]
[1753492371211,1.4608,3724.9,3724.8,2.1041079]
[1753492371916,1.9976,3724.9,3724.8,2.1041079]
[1753492372107,1.4608,3724.9,3724.8,2.26431]
[1753492372419,1.4608,3724.9,3724.8,2.10392137]
[1753492372716,1.4608,3724.9,3724.8,2.64073137]
[1753492373316,1.9976,3724.9,3724.8,2.10392137]
[1753492373913,2.3087,3724.9,3724.8,2.10392137]
[1753492374212,2.3087,3724.9,3724.8,1.7275]
[1753492374717,2.3087,3724.9,3724.8,0.7026]
[1753492375311,2.3087,3724.9,3724.8,0.508]
[1753492375815,2.3087,3724.9,3724.8,1.7275]
[1753492376416,1.7719,3724.9,3724.8,2.26431]
[1753492376718,2.3087,3724.9,3724.8,1.7275]
[1753492376906,2.3087,3724.9,3724.8,2.26431]
[1753492377109,2.40124161,3724.9,3724.8,2.26431]
[1753492377718,2.09014161,3724.9,3724.8,2.26431]
[1753492378415,2.93804161,3724.9,3724.8,1.7275]
[1753492378612,2.93804161,3724.9,3724.8,2.10320991]
[1753492379119,2.93804161,3724.9,3724.8,1.7275]
[1753492379314,2.40124161,3724.9,3724.8,2.26431]
[1753492379916,2.93804161,3724.9,3724.8,2.26431]
[1753492380112,2.93804161,3724.9,3724.8,1.7275]
[1753492380718,2.40124161,3724.9,3724.8,2.26431]
[1753492381415,2.93804161,3724.9,3724.8,2.26431]
[1753492381615,2.93804161,3724.9,3724.8,1.7275]
[1753492381814,2.93804161,3724.9,3724.8,0.7026]
[1753492382613,1.70506,3724.5,3724.4,0.3128]
[1753492382816,2.93810161,3724.5,3724.4,0.68844929]
[1753492385819,2.30878,3724.3,3724.2,2.10325483]
[1753492386415,2.30878,3724.3,3724.2,0.68855483]
[1753492387522,2.30878,3724.3,3724.2,0.37575483]
[1753492387718,2.30288,3724.3,3724.2,0.37575483]
[1753492388024,2.93213574,3724.3,3724.2,0.37575483]
[1753492389024,2.93213574,3724.3,3724.2,0.68275483]
[1753492389412,0.93235574,3724.3,3724.2,2.09755483]
[1753492389919,0.3031,3724.3,3724.2,2.63445483]
[1753492390125,0.93278174,3724.3,3724.2,2.63445483]
[1753492390724,0.93278174,3724.3,3724.2,2.09755483]
[1753492390926,1.92257174,3724.3,3724.2,2.09755483]
[1753492391130,2.21547174,3724.3,3724.2,2.09755483]
[1753492391724,2.61757174,3724.3,3724.2,2.09755483]
[1753492391920,2.91367174,3724.3,3724.2,2.09755483]
[1753492392228,2.91367174,3724.3,3724.2,0.37575483]
[1753492393027,2.91367174,3724.3,3724.2,0.68275483]
[1753492394135,2.91367174,3724.3,3724.2,0.88125483]
[1753492394333,2.91367174,3724.3,3724.2,1.60285483]
[1753492394633,2.91367174,3724.3,3724.2,1.80665483]
[1753492395518,2.91367174,3724.3,3724.2,2.09755483]
[1753492396524,2.61757174,3724.3,3724.2,2.09755483]
[1753492398429,2.61757174,3724.3,3724.2,2.09862997]
[1753492401021,2.91367174,3724.3,3724.2,2.09862997]
[1753492401226,2.91367174,3724.3,3724.2,1.66322997]
[1753492401528,2.91367174,3724.3,3724.2,0.88232997]
[1753492401831,2.91367174,3724.3,3724.2,0.68382997]
[1753492403227,2.91367174,3724.3,3724.2,0.88232997]
[1753492403529,2.91367174,3724.3,3724.2,2.09862997]
[1753492404333,2.91367174,3724.3,3724.2,2.09523877]
[1753492406133,2.91367174,3724.3,3724.2,1.65983877]
[1753492406433,2.91367174,3724.3,3724.2,1.08273877]
[1753492407027,2.91367174,3724.3,3724.2,2.09523877]
[1753492408331,2.91484349,3724.3,3724.2,2.09523877]
[1753492415035,2.91484349,3724.3,3724.2,1.08273877]
[1753492415431,2.91484349,3724.3,3724.2,1.82203877]
[1753492415936,2.91484349,3724.3,3724.2,1.82263364]
[1753492416336,2.91484349,3724.3,3724.2,2.13803364]
[1753492417538,2.61874349,3724.3,3724.2,2.13803364]
[1753492418839,2.92004349,3724.3,3724.2,2.13803364]
[1753492419132,2.61874349,3724.3,3724.2,2.13803364]
[1753492419527,2.42104349,3724.3,3724.2,2.13803364]
[1753492420134,2.61604349,3724.3,3724.2,2.13803364]
[1753492421434,2.91734349,3724.3,3724.2,2.13803364]
[1753492425728,2.91734349,3724.3,3724.2,1.38253364]
[1753492425934,2.91734349,3724.3,3724.2,0.68103364]
[1753492427739,2.91734349,3724.3,3724.2,0.68116931]
[1753492427940,2.91734349,3724.3,3724.2,1.61246931]
[1753492428535,2.91734349,3724.3,3724.2,0.87316931]
[1753492429942,2.91734349,3724.3,3724.2,0.68116931]
[1753492430640,2.91734349,3724.3,3724.2,1.61246931]
[1753492431042,2.91734349,3724.3,3724.2,1.81036931]
[1753492432245,2.61604349,3724.3,3724.2,2.12576931]
[1753492434643,1.16774349,3724.3,3724.2,2.12576931]
[1753492435041,2.92854349,3724.3,3724.2,0.37416931]
[1753492435241,1.23261,3724.1,3724.0,0.2951]
[1753492435443,2.92856349,3724.1,3724.0,0.66984788]
[1753492435645,2.92856349,3724.1,3724.0,0.86184788]
[1753492436643,2.92856349,3724.1,3724.0,1.60114788]
[1753492437347,2.92856349,3724.1,3724.0,1.16083296]
[1753492437650,2.92856349,3724.1,3724.0,0.86163296]
[1753492438149,2.92856349,3724.1,3724.0,1.60093296]
[1753492439346,2.92856349,3724.1,3724.0,1.79883296]
[1753492440346,4.37593599,3724.1,3724.0,1.79883296]
[1753492441152,4.37593599,3724.1,3724.0,2.11423296]
[1753492441452,2.62726349,3724.1,3724.0,2.11423296]
[1753492442549,1.86346349,3724.1,3724.0,2.11423296]
[1753492442752,1.16776349,3724.1,3724.0,2.11423296]
[1753492443855,0.63085349,3724.1,3724.0,2.11423296]
[1753492444351,0.53687,3724.4,3724.3,0.6024]
[1753492444552,0.53687,3724.4,3724.3,0.97693296]
[1753492444742,0.53687,3724.4,3724.3,1.70403296]
[1753492447248,0.98727,3724.4,3724.3,1.70403296]
[1753492447453,1.27777,3724.4,3724.3,1.70403296]
[1753492447654,1.57657,3724.4,3724.3,1.70403296]
[1753492449356,1.77897,3724.4,3724.3,1.70403296]
[1753492450148,1.97667,3724.4,3724.3,1.70403296]
[1753492453457,2.28387,3724.4,3724.3,0.37453296]
[1753492454048,3.7312425,3724.4,3724.3,0.37453296]
[1753492454749,3.7312425,3724.4,3724.3,0.68373296]
[1753492456174,4.36016845,3724.4,3724.3,0.68373296]
[1753492458662,4.36016845,3724.4,3724.3,0.3092]
[1753492459666,4.36016845,3724.4,3724.3,0.68350616]
[1753492460964,4.36016845,3724.4,3724.3,0.3092]
[1753492461470,4.36016845,3724.4,3724.3,0.5121]
[1753492462368,4.36016845,3724.4,3724.3,0.8039]
[1753492462569,4.36016845,3724.4,3724.3,1.145]
[1753492463971,2.91279595,3724.4,3724.3,1.145]
[1753492465870,2.91279595,3724.4,3724.3,1.0126]
[1753492466068,2.91279595,3724.4,3724.3,0.7208]
[1753492467173,2.91279595,3724.4,3724.3,1.09331443]
[1753492469773,2.91279595,3724.4,3724.3,1.38511443]
[1753492470970,2.91279595,3724.4,3724.3,1.51751443]
[1753492472077,4.36016845,3724.4,3724.3,1.51751443]
[1753492474077,4.84041382,3724.4,3724.3,1.51751443]
[1753492476383,4.84041382,3724.4,3724.3,1.72949978]
[1753492476882,4.53321382,3724.4,3724.3,1.72949978]
[1753492477480,1.45629595,3724.4,3724.3,1.72949978]
[1753492477681,1.16579595,3724.4,3724.3,1.72949978]
[1753492485085,1.16579595,3724.4,3724.3,1.3568]
[1753492485381,1.16579595,3724.4,3724.3,1.72948573]
[1753492485582,1.16579595,3724.4,3724.3,1.72946735]
[1753492486179,1.61169595,3724.4,3724.3,1.72946735]
[1753492487779,2.20339595,3724.4,3724.3,1.72946735]
[1753492488174,2.20339595,3724.4,3724.3,1.72943923]
[1753492488584,1.16579595,3724.4,3724.3,1.72943923]
[1753492489585,2.20339595,3724.4,3724.3,1.72943923]
[1753492491080,2.20339595,3724.4,3724.3,1.72801525]
[1753492491484,1.16579595,3724.4,3724.3,1.72801525]
[1753492491676,0.62892595,3724.4,3724.3,1.72801525]
[1753492491876,1.16579595,3724.4,3724.3,1.72801525]
[1753492492489,1.16579595,3724.4,3724.3,7.26489525]
[1753492492783,1.16579595,3724.4,3724.3,6.72801525]
[1753492493179,1.16579595,3724.4,3724.3,7.26489525]
[1753492493378,1.16579595,3724.4,3724.3,1.72801525]
[1753492495984,2.60559595,3724.4,3724.3,1.72801525]
[1753492496288,2.89689595,3724.4,3724.3,0.68041525]
[1753492496491,2.89689595,3724.4,3724.3,0.37121525]
[1753492497993,2.89689595,3724.4,3724.3,1.52191525]
[1753492500087,2.89689595,3724.4,3724.3,1.52181858]
[1753492500288,2.89689595,3724.4,3724.3,1.38961858]
[1753492500490,2.89689595,3724.4,3724.3,0.37111858]
[1753492501185,2.89689595,3724.4,3724.3,0.67561858]
[1753492501995,2.89689595,3724.4,3724.3,1.52181858]
[1753492502879,2.89689595,3724.4,3724.3,1.38961858]
[1753492506594,2.89689595,3724.4,3724.3,0.37111858]
[1753492507289,2.89648315,3724.4,3724.3,0.37111858]
[1753492507996,2.89648315,3724.4,3724.3,0.67131858]
[1753492508197,2.89648315,3724.4,3724.3,0.87391858]
[1753492508391,2.89648315,3724.4,3724.3,1.37111858]
[1753492508698,2.89648315,3724.4,3724.3,1.50351858]
[1753492510793,2.89648315,3724.4,3724.3,1.50366844]
[1753492512192,2.90608315,3724.4,3724.3,1.71556844]
[1753492516298,2.90608315,3724.4,3724.3,1.71548752]
[1753492518596,2.90608315,3724.4,3724.3,1.37118752]
[1753492519095,3.64533186,3724.4,3724.3,0.37118752]
[1753492519291,3.64533186,3724.4,3724.3,7.52e-06]
[1753492519491,1.7674,3724.0,3723.7,0.2967]
[1753492519796,2.93287315,3723.9,3723.8,0.3002]
[1753492520498,2.93287315,3723.9,3723.8,0.7995]
[1753492520696,2.93287315,3723.9,3723.8,1.0]
[1753492520898,2.93287315,3723.9,3723.8,1.1325]
[1753492526899,2.93287315,3723.9,3723.8,1.0]
[1753492527599,2.30442,3723.5,3723.4,1.1325]
[1753492527892,2.30442,3723.5,3723.2,0.3002]
[1753492527893,0.83031315,3723.5,3723.2,0.3002]
[1753492528098,2.30445,3723.3,3723.2,0.5028]
[1753492528297,2.93296315,3723.3,3723.2,0.5028]
[1753492528601,2.93296315,3723.3,3723.2,1.1325]
[1753492531399,2.93296315,3723.3,3723.2,1.49713044]
[1753492534798,2.63206315,3723.3,3723.2,1.70903044]
[1753492535096,0.62851315,3723.3,3723.2,2.44827915]
[1753492535296,0.49581315,3723.3,3723.2,2.44827915]
[1753492535495,0.17991315,3723.3,3723.2,2.98533915]
[1753492535696,0.53701,3723.6,3723.5,0.4153]
[1753492536002,1.0701,3724.0,3723.9,0.4153]
[1753492536203,0.759,3724.0,3723.9,1.39463044]
[1753492536605,1.29595,3724.0,3723.9,1.39463044]
[1753492536806,2.13075,3724.0,3723.9,1.39463044]
[1753492537705,2.33785,3724.0,3723.9,1.39463044]
[1753492547717,2.96411816,3724.0,3723.9,1.39463044]
[1753492549918,1.16321816,3724.0,3723.9,2.13387915]
[1753492551021,1.63251816,3724.0,3723.9,2.13387915]
[1753492551618,2.65301816,3724.0,3723.9,1.10387915]
[1753492551924,2.96411816,3724.0,3723.9,1.03]
[1753492552125,2.96411816,3724.0,3723.9,1.39542513]
[1753492553718,2.96411816,3724.0,3723.9,1.03]
[1753492557133,2.96411816,3724.0,3723.9,1.39543318]
[1753492557433,2.96411816,3724.0,3723.9,1.03]
[1753492557640,2.96411816,3724.0,3723.9,1.39543725]
[1753492558326,2.96411816,3724.0,3723.9,1.39543441]
[1753492565236,4.40951483,3724.0,3723.9,1.39543441]
[1753492567533,4.40951483,3724.0,3723.9,2.67164312]
[1753492567534,2.07166483,3724.0,3723.9,2.67164312]
[1753492567832,0.62626816,3724.0,3723.9,7.67164312]
[1753492570437,0.62626816,3724.0,3723.9,2.67164312]
[1753492574139,2.09052,3724.2,3724.1,1.54313]
[1753492574340,2.91393678,3724.2,3724.1,1.37163441]
[1753492574639,2.91393678,3724.2,3724.1,1.90856441]
[1753492575040,2.91393678,3724.2,3724.1,0.36543441]
[1753492576938,2.91370407,3724.2,3724.1,0.36543441]
[1753492577739,2.28751,3722.9,3722.8,1.0062]
[1753492578142,1.23454,3722.7,3722.6,0.5241]
[1753492578340,2.28754,3722.7,3722.6,0.8164]
[1753492578735,2.37643722,3722.7,3722.6,0.8164]
[1753492578940,2.06673722,3722.7,3722.6,1.0062]
[1753492579749,2.60387722,3722.7,3722.6,1.0062]
[1753492580242,1.4407,3722.7,3722.6,1.0062]
[1753492580548,1.4407,3722.7,3722.6,1.54335]
[1753492581243,1.4407,3722.7,3722.6,1.0062]
[1753492581746,1.97784,3722.7,3722.6,1.0062]
[1753492581947,2.28754,3722.7,3722.6,1.0062]
[1753492584148,1.97784,3722.7,3722.6,1.0062]
[1753492584351,1.4407,3722.7,3722.6,1.54335]
[1753492584649,0.3097,3722.9,3722.5,0.73924871]
[1753492584650,1.28391,3722.9,3722.8,0.3993]
[1753492584847,1.97781,3722.9,3722.8,1.13854871]
[1753492585051,2.28751,3722.9,3722.8,1.74544871]
[1753492586944,1.7504,3722.9,3722.8,1.74544871]
[1753492587141,1.4407,3722.9,3722.8,1.74544871]
[1753492587340,1.97781,3722.9,3722.8,1.74544871]
[1753492587546,2.28761,3722.2,3722.1,0.3993]
[1753492588150,2.28761,3722.2,3722.1,0.6916]
[1753492588345,1.23464,3722.0,3721.9,0.3146]
[1753492588644,2.28765,3721.9,3721.8,0.49112585]
[1753492589244,2.28765,3721.9,3721.8,0.70062585]
[1753492589645,2.28765,3721.9,3721.8,1.06367195]
[1753492590047,2.28765,3721.9,3721.8,1.37827195]
[1753492590447,2.28765,3721.9,3721.8,1.56807195]
[1753492592547,2.28765,3721.9,3721.8,1.25347195]
[1753492592745,2.28765,3721.9,3721.8,0.56187195]
[1753492594151,1.54085,3721.9,3721.8,0.56187195]
[1753492594552,1.54085,3721.9,3721.8,0.19882585]
[1753492594852,1.54085,3721.9,3721.8,0.49112585]
[1753492596850,1.54085,3721.9,3721.8,0.19882585]
[1753492597549,1.54085,3721.9,3721.8,0.50882585]
[1753492598452,1.54085,3721.9,3721.8,0.70482585]
[1753492600257,1.54085,3721.9,3721.8,0.99002585]
[1753492601159,1.54085,3721.9,3721.8,1.19342585]
[1753492603362,1.54085,3721.9,3721.8,1.55599599]
[1753492616267,2.16682665,3721.9,3721.8,1.55599599]
[1753492618072,2.16682665,3721.9,3721.8,1.55764543]
[1753492619175,2.90232665,3721.9,3721.8,1.55764543]
[1753492620175,2.59262665,3721.9,3721.8,1.55844543]
[1753492623373,2.90352665,3721.9,3721.8,1.55764543]
[1753492624174,2.90352665,3721.9,3721.8,0.56304543]
[1753492624679,2.90352665,3721.9,3721.8,0.87304543]
[1753492624874,2.90352665,3721.9,3721.8,1.55764543]
[1753492625880,2.90429014,3721.9,3721.8,1.55810515]
[1753492629289,2.90429014,3721.9,3721.8,1.55806956]
[1753492629885,2.59339014,3721.9,3721.8,1.55806956]
[1753492635989,2.90909014,3721.9,3721.8,1.55806956]
[1753492638691,2.90909014,3721.9,3719.8,0.19893275]
[1753492638692,1.58982,3720.8,3720.7,0.4125]
[1753492638887,0.6108,3721.0,3720.7,0.4125]
[1753492639085,0.53741,3720.8,3720.7,0.4125]
[1753492639284,2.28561,3720.8,3720.7,0.4125]
[1753492639884,1.7482,3720.8,3720.7,1.15174871]
[1753492640087,0.5374,3720.9,3720.7,1.15174871]
[1753492640290,0.53741,3720.8,3720.7,1.15174871]
[1753492640488,0.73924871,3721.7,3721.0,0.2882]
[1753492640489,1.0524,3721.3,3721.0,0.2882]
[1753492640688,1.0524,3721.3,3721.2,1.75164871]
[1753492640689,0.53734,3721.3,3721.2,1.75164871]
[1753492640985,1.16361618,3721.3,3721.2,1.75164871]
[1753492641192,0.53734,3721.3,3721.2,1.75164871]
[1753492641493,0.2982,3721.5,3721.4,0.4125]
[1753492641789,1.0524,3721.9,3721.8,0.2021]
[1753492641986,1.16348507,3721.9,3721.8,1.75164871]
[1753492642389,0.62623507,3721.9,3721.8,2.28890871]
[1753492642882,0.62623507,3721.9,3721.8,1.75164871]
[1753492643087,1.16348507,3721.9,3721.8,1.75164871]
[1753492643287,0.62623507,3721.9,3721.8,2.28890871]
[1753492643495,1.16348507,3721.9,3721.8,1.75164871]
[1753492644289,2.28535,3722.6,3722.5,0.4125]
[1753492644588,2.91174182,3722.6,3722.5,1.0124]
[1753492645790,0.73876,3722.5,3722.4,1.15174871]
[1753492645992,1.36515182,3722.5,3722.4,1.15174871]
[1753492646188,1.36515182,3722.5,3722.4,1.75164871]
[1753492646690,1.16355182,3722.5,3722.4,1.75164871]
[1753492647193,1.88466,3722.5,3722.4,1.75164871]
[1753492647394,2.51061923,3722.5,3722.4,1.75164871]
[1753492648197,1.88466,3722.5,3722.4,1.75164871]
[1753492648393,2.91114196,3722.5,3722.4,1.0124]
[1753492650597,2.91114196,3722.5,3722.4,1.37553785]
[1753492651295,2.28536,3722.5,3722.4,1.37553785]
[1753492653801,2.28536,3722.5,3722.4,1.0124]
[1753492654003,2.28536,3722.5,3722.4,1.37542016]
[1753492654302,2.91079308,3722.5,3722.4,0.77552016]
[1753492654502,2.91079308,3722.5,3722.4,0.56512016]
[1753492654997,2.91079308,3722.5,3722.4,0.36302016]
[1753492656998,2.91079308,3722.5,3722.4,1.06872016]
[1753492657205,2.91079308,3722.5,3722.4,1.37532016]
[1753492658199,0.92053308,3722.5,3722.4,2.11456887]
[1753492658398,1.16259308,3722.5,3722.4,2.11456887]
[1753492660999,2.51939308,3722.5,3722.4,2.11456887]
[1753492661201,2.92769308,3722.5,3722.4,2.11456887]
[1753492662804,2.39053308,3722.5,3722.4,2.11456887]
[1753492663006,2.92769308,3722.5,3722.4,2.11453768]
[1753492664101,2.30226,3722.5,3722.4,2.11453768]
[1753492668511,2.30226,3722.5,3722.4,2.11468853]
[1753492668711,2.92788174,3722.5,3722.4,0.36313982]
[1753492669807,2.42658174,3722.5,3722.4,0.36313982]
[1753492670105,2.92788174,3722.5,3722.4,0.36313982]
[1753492671706,2.92788174,3722.5,3722.0,0.3089]
[1753492671707,1.80102,3722.1,3722.0,0.3089]
[1753492671911,3.16589045,3722.1,3722.0,0.3089]
[1753492672211,1.03432,3721.4,3721.3,0.67]
[1753492672411,1.80116,3721.1,3721.0,2.92918778]
[1753492672606,1.80116,3721.1,3721.0,0.4965]
[1753492672807,1.80116,3721.1,3721.0,0.2001]
[1753492673014,1.80116,3721.1,3721.0,1.1241]
[1753492673213,1.80116,3721.1,3721.0,1.4307]
[1753492673512,2.30246,3721.1,3721.0,1.4307]
[1753492673907,1.7651,3721.1,3721.0,1.4307]
[1753492674308,2.30246,3721.1,3721.0,1.4307]
[1753492674809,1.7651,3721.1,3721.0,1.4307]
[1753492675020,2.30246,3721.1,3721.0,1.6454]
[1753492675209,1.7651,3721.1,3721.0,1.6454]
[1753492675406,2.30246,3721.1,3721.0,1.6454]
[1753492677423,2.30246,3721.1,3721.0,1.4307]
[1753492679726,2.30246,3721.1,3720.9,0.73924871]
[1753492679924,1.24257,3721.0,3720.9,0.73924871]
[1753492680127,1.7651,3721.0,3720.9,1.46654871]
[1753492680327,1.7651,3721.0,3720.9,2.70733871]
[1753492680532,1.7651,3721.0,3720.9,2.92203871]
[1753492680826,0.2931,3721.0,3720.9,2.92203871]
[1753492681029,0.2931,3721.3,3721.2,1.6454]
[1753492681225,0.2931,3721.3,3721.2,2.92198871]
[1753492682432,1.7651,3721.3,3721.2,2.92198871]
[1753492682734,1.3067,3721.3,3721.2,2.92198871]
[1753492683231,1.84403,3721.3,3721.2,2.92198871]
[1753492683430,2.30243,3721.3,3721.2,2.92198871]
[1753492683629,2.30243,3721.3,3721.2,2.40068871]
[1753492683832,1.7651,3721.3,3721.2,3.06540102]
[1753492684026,1.7651,3721.3,3721.2,3.28010102]
[1753492684634,2.30243,3721.3,3721.2,3.28010102]
[1753492685133,2.30243,3721.3,3721.2,3.06540102]